fUST/lending_fUST_20251020
["ID","MTS","AMOUNT","RATE_DAILY","PERIOD"]
[391839947,1760902232640,-500.0,0.00028059,2]
[391839948,1760902232652,-500.0,0.00028059,2]
[391839950,1760902232663,-500.0,0.00028059,2]
[391839952,1760902232672,-500.0,0.00028059,2]
[391839953,1760902232682,-500.0,0.00028059,2]
[391839955,1760902232691,-157.68042837,0.00028059,2]
[391839957,1760902232701,-200.0,0.00028059,2]
[391839959,1760902232710,-500.0,0.00028059,2]
[391839960,1760902232722,-500.0,0.00028059,2]
[391839961,1760902232732,-383.06460773,0.00028059,2]
[391839962,1760902232741,-500.0,0.00028059,2]
[391839963,1760902232751,-500.0,0.00028059,2]
[391839964,1760902232760,-158.46728223,0.00028059,2]
[391839965,1760902232770,-454.0,0.0002806,2]
[391839966,1760902232780,-35862.04315112,0.0002806,2]
[391839967,1760902232808,-1590.29893142,0.0002806,2]
[391839968,1760902232835,-520.4400967,0.0002806,2]
[391839971,1760902238197,-5881.67305124,0.0002806,2]
[391839972,1760902238210,-3519.98943669,0.0002806,2]
[391839995,1760902246645,-500.0,0.00028059,2]
[391839996,1760902246657,-500.0,0.00028059,2]
[391839997,1760902246666,-468.3,0.00028059,2]
[391839998,1760902246676,-468.3,0.00028059,2]
[391839999,1760902246686,-500.0,0.00028059,2]
[391840000,1760902246696,-134.69047449,0.00028059,2]
[391840002,1760902292503,246.42,0.00022826,2]
[391840005,1760902361388,2357.41658209,0.00024142,2]
[391840006,1760902361413,10000.01,0.00024142,2]
[391840007,1760902361437,7650.24341791,0.00024142,2]
[391840008,1760902371376,243.28,0.00022951,2]
[391840009,1760902449788,240.18,0.00023275,2]
[391840010,1760902530887,237.13,0.00022923,2]
[391840012,1760902611579,234.11,0.00022947,2]
[391840013,1760902643450,417.15472785,0.00024142,2]
[391840016,1760902691227,231.13,0.00022924,2]
[391840017,1760902770297,228.19,0.0002204,2]
[391840018,1760902770714,456.37,0.00024044,2]
[391840048,1760902849509,62.22185424,0.00022036,2]
[391840049,1760902849533,157.24814576,0.00022036,2]
[391840050,1760902849941,438.95,0.0002404,2]
[391840052,1760902929601,211.09,0.00022036,2]
[391840053,1760902930138,422.19,0.00024039,2]
[391840057,1760903008119,203.03,0.00022035,2]
[391840058,1760903008512,406.07,0.00024038,2]
[391840059,1760903011447,417.15472785,0.00024142,2]
[391840060,1760903088149,195.28,0.00022042,2]
[391840061,1760903088539,390.56,0.00024046,2]
[391840063,1760903167439,187.83,0.00022237,2]
[391840064,1760903222239,2009.30221613,0.00034258,60]
[391840065,1760903236288,417.15472785,0.00024,3]
[391840068,1760903245765,185.44,0.00022219,2]
[391840069,1760903325913,183.08,0.00022222,2]
[391840070,1760903405739,180.75,0.00022215,2]
[391840099,1760903432725,-361.49,0.00024235,2]
[391840100,1760903432735,-150.0,0.00024901,2]
[391840101,1760903432744,-172.5,0.00025501,2]
[391840102,1760903432754,-257.5110935,0.00026016,2]
[391840103,1760903432765,-117.34804381,0.00026016,2]
[391840104,1760903432775,-221.92599471,0.00026016,2]
[391840105,1760903432784,-1546.72596138,0.00026017,30]
[391840106,1760903437888,417.15472785,0.00024142,2]
[391840113,1760903438468,-207.28382165,0.00025949,2]
[391840114,1760903438479,-500.0,0.00026016,2]
[391840115,1760903438490,-500.0,0.00026016,2]
[391840116,1760903438500,-500.0,0.00026016,2]
[391840117,1760903438511,-500.0,0.00026016,2]
[391840118,1760903438521,-500.0,0.00026016,2]
[391840119,1760903438531,-500.0,0.00026016,2]
[391840120,1760903438541,-274.43663259,0.00026016,2]
[391840121,1760903438551,-500.0,0.00026016,2]
[391840122,1760903438560,-500.0,0.00026016,2]
[391840123,1760903438570,-566.06061843,0.00026016,2]
[391840124,1760903438580,-500.0,0.00026016,2]
[391840125,1760903438590,-500.0,0.00026016,2]
[391840127,1760903438600,-500.0,0.00026016,2]
[391840128,1760903438609,-500.0,0.00026016,2]
[391840129,1760903438619,-598.77857296,0.00026016,2]
[391840130,1760903438628,-500.0,0.00026016,2]
[391840131,1760903438637,-500.0,0.00026016,2]
[391840132,1760903438646,-18417.00456636,0.00026017,30]
[391840133,1760903438658,-8710.35769671,0.00026017,30]
[391840134,1760903438795,-4755.16143379,0.00026017,30]
[391840139,1760903484318,173.84,0.00022066,2]
[391840140,1760903484741,347.69,0.00024072,2]
[391840143,1760903564222,167.21,0.00022266,2]
[391840145,1760903644610,165.08,0.0002226,2]
[391840147,1760903724830,162.98,0.00022234,2]
[391840149,1760903762539,157.64489637,0.00023774,5]
[391840150,1760903804036,160.9,0.00022301,2]
[391840153,1760903884173,158.85,0.00022175,2]
[391840154,1760903965177,156.83,0.00022256,2]
[391840155,1760904044362,164.38,0.00022233,2]
[391840157,1760904124235,162.29,0.00022278,2]
[391840158,1760904204386,166.89,0.00022224,2]
[391840160,1760904284663,164.77,0.00022306,2]
[391840161,1760904307233,575.416431,0.00013699,2]
[391840162,1760904307433,575.416431,0.00020187,2]
[391840163,1760904324206,417.15472785,0.00024142,2]
[391840164,1760904350165,1101.52190281,0.00034256,60]
[391840166,1760904364925,162.67,0.0002142,2]
[391840167,1760904365337,325.34,0.0002244,2]
[391840168,1760904365756,488.01,0.0002346,2]
[391840169,1760904443638,150.25,0.00021421,2]
[391840170,1760904444037,300.5,0.00022441,2]
[391840171,1760904444430,282.91518447,0.00023461,2]
[391840172,1760904444460,167.82481553,0.00023461,2]
[391840173,1760904521736,150.0,0.00021436,2]
[391840174,1760904522143,277.55,0.00022457,2]
[391840175,1760904522582,416.32,0.00023477,2]
[391840178,1760904601452,150.0,0.00021427,2]
[391840179,1760904601889,269.23,0.00022447,2]
[391840180,1760904602272,403.85,0.00023467,2]
[391840233,1760904631877,-500.0,0.00024279,2]
[391840235,1760904631887,-150.0,0.00024279,2]
[391840237,1760904631897,-538.46,0.00024487,2]
[391840239,1760904631906,-812.02799593,0.00024779,2]
[391840241,1760904631918,-1.44306466,0.00024779,2]
[391840243,1760904631928,-1200.0,0.00024865,2]
[391840245,1760904631937,-300.0,0.00024865,2]
[391840246,1760904631947,-300.0,0.00024865,2]
[391840248,1760904631956,-300.0,0.00024865,2]
[391840250,1760904631966,-256.31583102,0.00024865,2]
[391840253,1760904631977,-500.0,0.00024865,2]
[391840363,1760904637760,-443.68416898,0.00024865,2]
[391840365,1760904637769,-300.0,0.00024865,2]
[391840367,1760904637778,-235.19967164,0.00024866,2]
[391840369,1760904637789,-1165.0,0.00024866,2]
[391842128,1760904678300,150.0,0.0002138,2]
[391842129,1760904678707,234.57,0.00022399,2]
[391842130,1760904679103,351.86,0.00023417,2]
[391842132,1760904747581,227.5,0.000241,2]
[391842133,1760904756105,150.0,0.00021352,2]
[391842134,1760904756495,215.83,0.00022369,2]
[391842135,1760904756945,323.74,0.00023385,2]
[391842136,1760904834365,150.0,0.00021413,2]
[391842137,1760904834829,198.28,0.00022433,2]
[391842138,1760904835244,297.41,0.00023453,2]
[391842139,1760904910609,150.0,0.00021381,2]
[391842140,1760904910922,181.84,0.00022399,2]
[391842141,1760904911347,272.76,0.00023417,2]
[391842143,1760905063862,5000.0,0.00024142,2]
[391842144,1760905071701,261.44518447,0.00024142,2]
[391842145,1760905071722,354.24942353,0.00024142,2]
[391842146,1760905087996,163.0,0.00024,120]
[391842147,1760905208960,162.0,0.00024,120]
[391842151,1760905218215,9645.76057647,0.00024013,2]
[391842152,1760905218237,10000.01,0.00024013,2]
[391842153,1760905218271,4665.34426953,0.00024013,2]
[391842155,1760905291367,300.0,0.00024,2]
[391842156,1760905294910,174.897,0.00024092,2]
[391842157,1760905486811,186.510719,0.00023676,2]
[391842158,1760905503584,158.0,9.4e-07,2]
[391842160,1760905563159,417.15472785,0.00024142,2]
[391842169,1760905693605,450.68374167,0.00024057,2]
[391842170,1760905695926,357.74369373,0.00024057,2]
[391842180,1760905711981,-270.68975983,0.00024292,2]
[391842181,1760905712997,367.6230288,0.0002,2]
[391842182,1760905713026,1000.0,0.000234,30]
[391842183,1760905713297,6587.39708895,0.00015,2]
[391842184,1760905713322,9877.81936306,0.00015,2]
[391842185,1760905713450,-124.19786137,0.00024292,2]
[391842186,1760905713473,-150.0,0.00024301,2]
[391842187,1760905713495,-14.24697706,0.00024384,2]
[391842188,1760905714313,122.19063694,0.00024,2]
[391842189,1760905714335,1433.39473215,0.00024,2]
[391842190,1760905714400,8566.61526785,0.00019,2]
[391842191,1760905714424,10000.01,0.00019,2]
[391842192,1760905714447,10000.01,0.00019,2]
[391842193,1760905714468,2283.52026793,0.00019,2]
[391842194,1760905715746,707.29408256,0.00018,2]
[391842195,1760905716252,-145.75302294,0.00024384,2]
[391842196,1760905716275,-53.19490241,0.00024384,2]
[391842197,1760905718530,7009.19564951,0.0002,2]
[391842198,1760905718553,2476.90785708,0.0002,2]
[391842199,1760905719541,163.92251958,0.00024,2]
[391842200,1760905719703,-106.80509759,0.00024384,2]
[391842201,1760905719724,-117.55934778,0.00024384,2]
[391842202,1760905719947,5000.0,0.00024142,2]
[391842203,1760905721170,3181.3816374,0.000215,2]
[391842204,1760905721552,1000.0,0.000235,2]
[391842205,1760905724655,-151.02389613,0.00024142,2]
[391842206,1760905735165,5000.0,0.0002401,2]
[391842207,1760905736067,-201.09418565,0.00024142,2]
[391842208,1760905737584,-184.12871426,0.00024142,2]
[391842209,1760905740288,-201.09266393,0.00024142,2]
[391842210,1760905742289,300.0,0.00024141,2]
[391842211,1760905742900,2612.11085205,0.00024142,2]
[391842212,1760905743211,-300.0,0.00024142,2]
[391842213,1760905745865,-167.12842416,0.00024142,2]
[391842216,1760905747965,-300.0,0.00024142,2]
[391842218,1760905750373,-238.34544461,0.00024142,2]
[391842221,1760905752421,-167.93338945,0.00024142,2]
[391842222,1760905753914,-200.97970536,0.00024142,2]
[391842225,1760905756222,-186.57375108,0.00024142,2]
[391842227,1760905758545,5000.0,0.00024142,2]
[391842228,1760905759653,-174.61940654,0.00024142,2]
[391842232,1760905780901,2087.89914795,0.00024142,2]
[391842233,1760905780924,2768.79405883,0.00024142,2]
[391842239,1760905801306,300.0,0.00024141,2]
[391842240,1760905802080,300.0,0.00024141,2]
[391842241,1760905802119,300.0,0.00024141,2]
[391842242,1760905802147,300.0,0.00024141,2]
[391842243,1760905803672,300.0,0.00024141,2]
[391842244,1760905803947,1200.0,0.00024141,2]
[391842245,1760905810311,187.63207684,0.00024057,2]
[391842246,1760905812291,337.73773832,0.00024057,2]
[391842247,1760905814267,600.42264589,0.00024057,2]
[391842248,1760905816413,937.22222383,0.00024057,2]
[391842293,1760905832003,-8281.26618399,0.00024142,2]
[391842298,1760905832061,-847.999995,0.00024142,2]
[391842300,1760905832073,-841.81967037,0.00024142,2]
[391842302,1760905832085,-2428.12706074,0.00024142,2]
[391842303,1760905832096,-331.96516108,0.00024142,2]
[391842304,1760905832106,-402.86590842,0.00024142,2]
[391842305,1760905832115,-200.0,0.00024142,10]
[391842306,1760905832124,-200.0,0.00024142,10]
[391842307,1760905832133,-200.0,0.00024142,10]
[391842308,1760905832143,-200.0,0.00024142,10]
[391842309,1760905832153,-200.0,0.00024142,10]
[391842310,1760905832162,-200.0,0.00024142,10]
[391842311,1760905832172,-200.0,0.00024142,10]
[391842312,1760905832181,-194.5304217,0.00024142,10]
[391842313,1760905832192,-5.4695783,0.00024142,10]
[391842314,1760905832201,-200.0,0.00024142,10]
[391842315,1760905832210,-200.0,0.00024142,10]
[391842316,1760905832220,-200.0,0.00024142,10]
[391842317,1760905832230,-14.58475097,0.00024142,10]
[391842330,1760905837794,-185.41524903,0.00024142,10]
[391842331,1760905837804,-200.0,0.00024142,10]
[391842332,1760905837814,-200.0,0.00024142,10]
[391842333,1760905837823,-200.0,0.00024142,10]
[391842334,1760905837832,-200.0,0.00024142,10]
[391842335,1760905837842,-200.0,0.00024142,10]
[391842336,1760905837851,-200.0,0.00024142,10]
[391842337,1760905837860,-200.0,0.00024142,10]
[391842338,1760905837870,-200.0,0.00024142,10]
[391842339,1760905837879,-200.0,0.00024142,10]
[391842340,1760905837888,-200.0,0.00024142,10]
[391842341,1760905837899,-200.0,0.00024142,10]
[391842342,1760905837908,-200.0,0.00024142,10]
[391842343,1760905837917,-200.0,0.00024142,10]
[391842344,1760905837927,-200.0,0.00024142,10]
[391842345,1760905837936,-200.0,0.00024142,10]
[391842346,1760905837946,-200.0,0.00024142,10]
[391842347,1760905837956,-200.0,0.00024142,10]
[391842348,1760905837965,-200.0,0.00024142,10]
[391842349,1760905837975,-200.0,0.00024142,10]
[391842350,1760905837985,-200.0,0.00024142,10]
[391842351,1760905837995,-200.0,0.00024142,10]
[391842352,1760905838004,-200.0,0.00024142,10]
[391842353,1760905838014,-200.0,0.00024142,10]
[391842354,1760905838023,-200.0,0.00024142,10]
[391842355,1760905838032,-200.0,0.00024142,10]
[391842356,1760905838041,-200.0,0.00024142,10]
[391842357,1760905838051,-200.0,0.00024142,10]
[391842358,1760905838060,-328.181467,0.00024142,10]
[391842359,1760905838070,-200.0,0.00024142,2]
[391842360,1760905838079,-1142.39511368,0.000243,2]
[391842361,1760905838090,-7.31993344,0.000243,2]
[391842362,1760905838099,-1046.30534283,0.00024301,2]
[391842375,1760905840301,-3e-08,0.00024301,2]
[391842376,1760905840312,-2756.6990486,0.00024301,2]
[391842377,1760905840323,-3385.0,0.00024392,3]
[391842378,1760905840332,-829.89328519,0.00024392,3]
[391842379,1760905840344,-862.60671481,0.00024392,3]
[391842380,1760905840352,-1200.0,0.00024399,2]
[391842381,1760905840361,-500.0,0.00024399,2]
[391842382,1760905840371,-465.74911312,0.00024399,2]
[391842383,1760905840381,-500.0,0.00024399,2]
[391842384,1760905840391,-500.0,0.00024399,2]
[391842385,1760905840402,-500.0,0.00024399,2]
[391842386,1760905840413,-500.0,0.00024399,2]
[391842387,1760905840425,-472.69821648,0.00024399,2]
[391842388,1760905840434,-500.0,0.00024399,2]
[391842389,1760905840443,-194.82394137,0.00024399,2]
[391842390,1760905840452,-500.0,0.00024399,2]
[391842391,1760905840461,-311.39566607,0.00024399,2]
[391842392,1760905840470,-500.0,0.00024399,2]
[391842393,1760905840481,-500.0,0.00024399,2]
[391842394,1760905840492,-309.8778573,0.00024399,2]
[391842395,1760905840501,-500.0,0.00024399,2]
[391842396,1760905840511,-500.0,0.00024399,2]
[391842397,1760905840520,-500.0,0.00024399,2]
[391842398,1760905840530,-500.0,0.00024399,2]
[391842399,1760905840539,-181.16279723,0.00024399,2]
[391842400,1760905840547,-454.77922316,0.000244,2]
[391842401,1760905840557,-11397.50455528,0.000244,2]
[391842402,1760905842905,-6131.23127043,0.000244,2]
[391842417,1760905846211,-722.25,0.00024391,10]
[391842418,1760905846221,-846.25,0.00024392,3]
[391842419,1760905846230,-32471.26417429,0.000244,2]
[391842420,1760905846240,-151.0,0.000244,7]
[391842421,1760905846249,-151.0,0.000244,7]
[391842422,1760905846259,-151.0,0.000244,7]
[391842423,1760905846268,-151.0,0.000244,7]
[391842424,1760905846277,-151.0,0.000244,7]
[391842425,1760905846286,-151.0,0.000244,7]
[391842426,1760905846297,-151.0,0.000244,7]
[391842427,1760905846306,-151.0,0.000244,7]
[391842428,1760905846316,-151.0,0.000244,7]
[391842429,1760905846325,-151.0,0.000244,7]
[391842430,1760905846334,-151.0,0.000244,7]
[391842431,1760905846344,-151.0,0.000244,7]
[391842432,1760905846354,-605.73990156,0.000244,2]
[391842433,1760905846364,-309.97852169,0.000244,2]
[391842434,1760905846373,-151.0,0.000244,7]
[391842435,1760905846383,-151.0,0.000244,7]
[391842436,1760905846393,-151.0,0.000244,7]
[391842437,1760905846404,-151.0,0.000244,7]
[391842438,1760905846413,-151.0,0.000244,7]
[391842439,1760905846423,-151.0,0.000244,7]
[391842440,1760905846433,-151.0,0.000244,7]
[391842441,1760905846444,-184.276709,0.000244,7]
[391842442,1760905846454,-151.0,0.00024401,7]
[391842443,1760905846465,-151.0,0.00024401,7]
[391842444,1760905846475,-151.0,0.00024401,7]
[391842445,1760905846485,-151.0,0.00024401,7]
[391842446,1760905846494,-151.0,0.00024401,7]
[391842447,1760905846503,-151.0,0.00024401,7]
[391842448,1760905846512,-151.0,0.00024401,7]
[391842449,1760905846521,-176.13478,0.00024401,7]
[391842450,1760905846530,-151.0,0.00024401,7]
[391842451,1760905846539,-151.0,0.00024401,7]
[391842452,1760905846549,-151.0,0.00024401,7]
[391842453,1760905846558,-151.0,0.00024401,7]
[391842454,1760905846569,-151.0,0.00024401,7]
[391842455,1760905846578,-151.0,0.00024401,7]
[391842456,1760905846587,-151.0,0.00024401,7]
[391842457,1760905846596,-151.0,0.00024401,7]
[391842458,1760905846605,-151.0,0.00024401,7]
[391842459,1760905846614,-151.0,0.00024401,7]
[391842460,1760905846624,-320.125359,0.00024401,7]
[391842461,1760905846633,-320.125359,0.00024401,7]
[391842462,1760905846642,-151.0,0.00024401,7]
[391842463,1760905846651,-151.0,0.00024401,7]
[391842464,1760905846661,-320.125359,0.00024401,7]
[391842465,1760905846669,-151.0,0.00024401,7]
[391842466,1760905846678,-320.125359,0.00024401,7]
[391842467,1760905846687,-151.0,0.00024401,7]
[391842468,1760905846697,-151.0,0.00024401,7]
[391842469,1760905846710,-151.0,0.00024401,7]
[391842470,1760905846719,-320.125359,0.00024401,7]
[391842471,1760905846728,-151.0,0.00024401,7]
[391842472,1760905846737,-320.125359,0.00024401,7]
[391842473,1760905846747,-151.0,0.00024401,7]
[391842474,1760905846756,-151.0,0.00024401,7]
[391842475,1760905846765,-192.078944,0.00024401,7]
[391842476,1760905846774,-320.125359,0.00024401,7]
[391842477,1760905846846,-320.125359,0.00024401,7]
[391842478,1760905846855,-151.0,0.00024401,7]
[391842479,1760905846865,-151.0,0.00024401,7]
[391842480,1760905846874,-151.0,0.00024401,7]
[391842481,1760905846883,-151.0,0.00024401,7]
[391842482,1760905846892,-151.0,0.00024401,7]
[391842483,1760905846902,-151.0,0.00024401,7]
[391842484,1760905846911,-151.0,0.00024401,7]
[391842485,1760905846920,-151.0,0.00024401,7]
[391842486,1760905846930,-217.216141,0.00024401,7]
[391842487,1760905846939,-171.924886,0.00024401,7]
[391842488,1760905846949,-285.598368,0.00024401,7]
[391842489,1760905846958,-285.598368,0.00024401,7]
[391842490,1760905846967,-285.598368,0.00024401,7]
[391842491,1760905846976,-285.598368,0.00024401,7]
[391842492,1760905846986,-285.598368,0.00024401,7]
[391842493,1760905846995,-285.598368,0.00024401,7]
[391842494,1760905847004,-285.598368,0.00024401,7]
[391842495,1760905847013,-285.598368,0.00024401,7]
[391842496,1760905847023,-151.0,0.00024401,7]
[391842497,1760905847032,-683.942025,0.00024401,7]
[391842498,1760905847041,-683.942025,0.00024401,7]
[391842499,1760905847051,-683.942025,0.00024401,7]
[391842500,1760905847060,-683.942025,0.00024401,7]
[391842501,1760905847070,-2534.715689,0.00024401,7]
[391842502,1760905847080,-683.942025,0.00024401,7]
[391842503,1760905847089,-2534.715689,0.00024401,7]
[391842504,1760905847098,-683.942025,0.00024401,7]
[391842505,1760905847107,-2534.715689,0.00024401,7]
[391842506,1760905847116,-151.0,0.00024401,7]
[391842507,1760905847125,-151.0,0.00024401,7]
[391842508,1760905847135,-683.942025,0.00024401,7]
[391842509,1760905847144,-151.0,0.00024401,7]
[391842510,1760905847154,-2534.715689,0.00024401,7]
[391842511,1760905847162,-683.942025,0.00024401,7]
[391842512,1760905847171,-2534.715689,0.00024401,7]
[391842513,1760905847180,-683.942025,0.00024401,7]
[391842514,1760905847190,-2534.715689,0.00024401,7]
[391842515,1760905847199,-683.942025,0.00024401,7]
[391842516,1760905847208,-2534.715689,0.00024401,7]
[391842517,1760905847218,-683.942025,0.00024401,7]
[391842518,1760905847227,-2534.715689,0.00024401,7]
[391842519,1760905847236,-683.942025,0.00024401,7]
[391842520,1760905847245,-2534.715689,0.00024401,7]
[391842521,1760905847267,-2534.715689,0.00024401,7]
[391842522,1760905847283,-235.563625,0.00024401,7]
[391842523,1760905847300,-2534.715689,0.00024401,7]
[391842524,1760905847319,-2534.715689,0.00024401,7]
[391842525,1760905847338,-338.255674,0.00024401,7]
[391842526,1760905847355,-338.255674,0.00024401,7]
[391842527,1760905847372,-338.255674,0.00024401,7]
[391842528,1760905847386,-338.255674,0.00024401,7]
[391842529,1760905847402,-338.255674,0.00024401,7]
[391842530,1760905847419,-338.255674,0.00024401,7]
[391842531,1760905847439,-151.0,0.00024401,7]
[391842532,1760905847455,-151.0,0.00024401,7]
[391842533,1760905847469,-338.255674,0.00024401,7]
[391842534,1760905847488,-151.0,0.00024401,7]
[391842535,1760905847501,-338.255674,0.00024401,7]
[391842536,1760905847517,-338.255674,0.00024401,7]
[391842537,1760905847530,-151.0,0.00024401,7]
[391842538,1760905847545,-151.0,0.00024401,7]
[391842539,1760905847565,-338.255674,0.00024401,7]
[391842540,1760905847579,-338.255674,0.00024401,7]
[391842541,1760905847593,-338.255674,0.00024401,7]
[391842542,1760905847608,-151.0,0.00024401,7]
[391842543,1760905847624,-197.123568,0.00024401,7]
[391842544,1760905847639,-151.0,0.00024401,7]
[391842545,1760905847660,-151.0,0.00024401,7]
[391842546,1760905847674,-151.0,0.00024401,7]
[391842547,1760905847688,-151.0,0.00024401,7]
[391842548,1760905847703,-151.0,0.00024401,7]
[391842549,1760905847720,-151.0,0.00024401,7]
[391842550,1760905847734,-151.0,0.00024401,7]
[391842551,1760905847748,-151.0,0.00024401,7]
[391842552,1760905847763,-151.0,0.00024401,7]
[391842553,1760905847778,-151.0,0.00024401,7]
[391842554,1760905847793,-151.0,0.00024401,7]
[391842555,1760905847808,-151.0,0.00024401,7]
[391842556,1760905847823,-151.0,0.00024401,7]
[391842557,1760905847837,-151.0,0.00024401,7]
[391842558,1760905847852,-151.0,0.00024401,7]
[391842559,1760905847867,-151.0,0.00024401,7]
[391842560,1760905847881,-230.691814,0.00024401,7]
[391842561,1760905847896,-151.0,0.00024401,7]
[391842562,1760905847911,-151.0,0.00024401,7]
[391842563,1760905847925,-151.0,0.00024401,7]
[391842564,1760905847939,-151.0,0.00024401,7]
[391842565,1760905847953,-151.0,0.00024401,7]
[391842566,1760905848057,-151.0,0.00024401,7]
[391842567,1760905848067,-151.0,0.00024401,7]
[391842568,1760905848077,-151.0,0.00024401,7]
[391842569,1760905848087,-151.0,0.00024401,7]
[391842570,1760905848096,-204.770431,0.00024401,7]
[391842571,1760905848106,-500.0,0.00024402,2]
[391842572,1760905848116,-5504.18735735,0.00024402,2]
[391842573,1760905848126,-151.0,0.00024402,7]
[391842574,1760905848136,-151.0,0.00024402,7]
[391842575,1760905848146,-151.0,0.00024402,7]
[391842576,1760905848155,-151.0,0.00024402,7]
[391842577,1760905848165,-151.0,0.00024402,7]
[391842578,1760905848175,-151.0,0.00024402,7]
[391842579,1760905848185,-151.0,0.00024402,7]
[391842580,1760905848195,-151.374707,0.00024402,7]
[391842581,1760905848204,-151.0,0.00024402,7]
[391842582,1760905848213,-151.0,0.00024402,7]
[391842583,1760905848223,-151.0,0.00024402,7]
[391842584,1760905848232,-230.158154,0.00024402,7]
[391842585,1760905848241,-151.0,0.00024402,7]
[391842586,1760905848251,-151.0,0.00024402,7]
[391842587,1760905848263,-151.0,0.00024402,7]
[391842588,1760905848272,-151.0,0.00024402,7]
[391842589,1760905848282,-151.0,0.00024402,7]
[391842590,1760905848292,-151.0,0.00024402,7]
[391842591,1760905848301,-151.0,0.00024402,7]
[391842592,1760905848310,-151.0,0.00024402,7]
[391842593,1760905848319,-151.0,0.00024402,7]
[391842594,1760905848328,-151.0,0.00024402,7]
[391842595,1760905848338,-224.988351,0.00024402,7]
[391842596,1760905848347,-151.0,0.00024402,7]
[391842597,1760905848356,-151.0,0.00024402,7]
[391842598,1760905848365,-320.125359,0.00024402,7]
[391842599,1760905848375,-320.125359,0.00024402,7]
[391842600,1760905848385,-151.0,0.00024402,7]
[391842601,1760905848395,-151.0,0.00024402,7]
[391842602,1760905848404,-320.125359,0.00024402,7]
[391842603,1760905848414,-151.0,0.00024402,7]
[391842604,1760905848423,-320.125359,0.00024402,7]
[391842605,1760905848432,-151.0,0.00024402,7]
[391842606,1760905848441,-151.0,0.00024402,7]
[391842607,1760905848450,-151.0,0.00024402,7]
[391842608,1760905848460,-320.125359,0.00024402,7]
[391842609,1760905848469,-215.932902,0.00024402,7]
[391842610,1760905848482,-320.125359,0.00024402,7]
[391842611,1760905848494,-320.125359,0.00024402,7]
[391842612,1760905848504,-320.125359,0.00024402,7]
[391842613,1760905848514,-177.893224,0.00024402,7]
[391842614,1760905848523,-151.0,0.00024402,7]
[391842615,1760905848534,-151.0,0.00024402,7]
[391842616,1760905848543,-151.0,0.00024402,7]
[391842617,1760905848553,-151.0,0.00024402,7]
[391842618,1760905848562,-151.0,0.00024402,7]
[391842619,1760905848574,-298.938141,0.00024402,7]
[391842620,1760905848583,-285.598368,0.00024402,7]
[391842621,1760905848594,-285.598368,0.00024402,7]
[391842622,1760905848606,-285.598368,0.00024402,7]
[391842623,1760905848617,-285.598368,0.00024402,7]
[391842624,1760905848629,-285.598368,0.00024402,7]
[391842625,1760905848638,-285.598368,0.00024402,7]
[391842626,1760905848647,-285.598368,0.00024402,7]
[391842627,1760905848656,-285.598368,0.00024402,7]
[391842628,1760905848666,-683.942025,0.00024402,7]